Cogmind - Beta 16 @@@ ROGUE MODE // 2025.10.28 @ 04:07:24 Player: FAQ Result: Destroyed by D-53 Grenadier with Mini Grenade Launcher Performance ------------- Evolutions (0) 0 Regions Visited (2) 400 Robots Destroyed (20) 100 Value Destroyed (306) 306 Prototype IDs (2) 40 Alien Tech Used (0) 0 Bonus (0) 0 TOTAL SCORE: 846 Bonus ------- None Cogmind --------- Core Integrity 0/250 Matter 115/300 Energy 230/250 System Corruption 6% Temperature Cool (0) Movement Walking (120) Location -10/Mines Parts ------- > --- POWER (1) -------- Ion Engine (fused) > --- PROPULSION (2) --- Aluminum Leg Improved Aluminum Leg > --- UTILITY (2) ------ Small Storage Unit > --- WEAPON (2) ------- (None) > --- INVENTORY (8) ---- Aluminum Leg Signal Interpreter EM Pulse Gun Rocket Launcher Peak State ------------ > --- POWER ------------ Ion Engine > --- PROPULSION ------- Improved Aluminum Leg Improved Aluminum Leg > --- UTILITY ---------- Small Storage Unit Visual Processing Unit > --- WEAPON ----------- Rocket Launcher Rocket Launcher > --- INVENTORY -------- Light Ion Engine Aluminum Leg Aluminum Leg Improved Aluminum Leg Improved Aluminum Leg Seismic Detector Shotgun Shotgun [Rating: 13] Favorites ----------- Power Ion Engine Engine Ion Engine Propulsion Improved Aluminum Leg Leg Improved Aluminum Leg Utility Small Storage Unit Device Sensor Array Storage Small Storage Unit Processor Visual Processing Unit Weapon Shotgun Ballistic Gun Shotgun Launcher Rocket Launcher Build | -11 -10 -10 ------- Run | Yrd Mat Min Slots Evolved . | . . . Power . | . . . Propulsion . | . . . Utility . | . . . Weapon . | . . . Parts Attached 20 | 6 11 3 Power 3 | 1 2 . Engine 3 | 1 2 . Core . | . . . Reactor . | . . . Propulsion 6 | 2 2 2 Treads . | . . . Leg 6 | 2 2 2 Wheel . | . . . Hover . | . . . Flight . | . . . Utility 5 | 1 3 1 Device 2 | . 1 1 Storage 2 | 1 1 . Processor 1 | . 1 . Hackware . | . . . Protection . | . . . Artifact . | . . . Weapon 6 | 2 4 . Energy Gun . | . . . Energy Cannon . | . . . Ballistic Gun 3 | 2 1 . Ballistic Cannon . | . . . Launcher 3 | . 3 . Special Weapon . | . . . Impact Weapon . | . . . Slashing Weapon . | . . . Piercing Weapon . | . . . Special Melee Weapon . | . . . Unidentified Prototypes . | . . . Parts Lost 7 | . . 7 Power . | . . . Propulsion 3 | . . 3 Utility 2 | . . 2 Weapon 2 | . . 2 Highest Loss Streak 4 | . . 4 To Critical Strikes . | . . . Average Backups 6 | 2 7 5 Power . | . . . Propulsion 3 | 1 3 2 Utility 1 | . 1 1 Weapon 1 | . 1 2 Tool/Special . | . . . Unused Backups 7 | . 4 3 Power . | . . . Propulsion 2 | . 2 . Utility 1 | . . 1 Weapon 4 | . 2 2 Tool/Special . | . . . Average Slot Usage (%) 96 | . 96 97 Engine 14 | . 14 14 Leg 27 | . 28 27 Device 3 | . . 10 Storage 14 | . 14 14 Processor 8 | . 10 2 Ballistic Gun 14 | . 14 13 Launcher 13 | . 13 13 Peak Build Rating 13 | 6 13 13 Average Rating 11 | 4 11 11 On Entrance 6 | . 6 13 Avg Prop Armor Cover (%) . | . . . Naked Turns . | . . . Heaviest Build 18 | 13 18 18 Greatest Support 26 | 20 26 26 Greatest Overweight (x) 1 | 1 1 . Average Overweight (x) . | . . . Largest Inventory Capacity 8 | 8 8 8 Average Capacity 7 | 6 8 8 Most Carried 8 | 4 8 8 Average Carried 6 | 2 7 5 Final Capacity 8 | 8 8 8 Final Carried 8 | 4 8 4 Class Distribution -------------------- 100% | Mutant Dominant Class ---------------- Mutant | -10/Materials Mutant | -10/Mines Resources | -11 -10 -10 ----------- Run | Yrd Mat Min Matter Collected 716 | 173 436 107 Remotely . | . . . Salvage Created 476 | . 403 73 Parts 29 | . 29 . Haulers Intercepted . | . . . Recyclers Shooed . | . . . Parts Field Recycled . | . . . Retrieved Matter . | . . . Parts Self-Destructed . | . . . Prevented . | . . . Parts Restored . | . . . Kills | -11 -10 -10 ------- Run | Yrd Mat Min Combat Hostiles Destroyed 25 | . 8 17 Guns 7 | . 1 6 AOE 18 | . 7 11 Classes Destroyed 8 | . 7 1 Worker 4 | . 4 . Builder 2 | . 2 . Tunneler 1 | . 1 . Recycler 3 | . 3 . Watcher 2 | . 2 . Swarmer 5 | . 5 . Grunt 3 | . 3 . Assembled 17 | . . 17 Best Kill Streak 16 | . 4 16 Combat Bots Only 16 | . 3 16 Max Kills in Single Turn 4 | . 3 4 Gunslinging . | . . . Exploded 3 | . 2 3 Melee . | . . . Uniques/NPCs Destroyed . | . . . Combat | -11 -10 -10 -------- Run | Yrd Mat Min Hostile Shots Fired 77 | . 36 41 Missed 27 | . 11 16 Hits 50 | . 25 25 Melee 4 | . . 4 Projectile 46 | . 25 21 AOE 8 | . . 8 Part Disruptions 1 | . . 1 Damage Taken 1024 | . 348 676 Core 268 | . 50 218 Absorbed by Shields . | . . . Regen/Repaired (Parts) 31 | . 31 . Core Remaining (%) 100 | 100 . . Volleys Fired 56 | . 36 20 Largest 2 | . 2 2 Hottest 56 | . 56 56 Shots Fired 72 | . 42 30 Gun 42 | . 22 20 Cannon . | . . . Launcher 30 | . 20 10 Special . | . . . Kinetic 42 | . 22 20 Thermal . | . . . Explosive 30 | . 20 10 Electromagnetic . | . . . Robot Hit Streak 5 | . 5 5 Robot Miss Streak 6 | . 6 4 Penetration Max . | . . . Secondary Targets . | . . . Shots Hit Robots 35 | . 19 16 Core Hits 62 | . 27 35 Critical Kills . | . . . Critical Parts Destroyed . | . . . Critical Strikes . | . . . Melee Attacks . | . . . Impact . | . . . Slashing . | . . . Piercing . | . . . Sneak Attacks . | . . . Combat Hostiles . | . . . Follow-up Attacks . | . . . Damage Inflicted 2295 | . 1295 1000 Guns 343 | . 122 221 Cannons . | . . . Explosions 1950 | . 1171 779 Melee . | . . . Ramming 2 | . 2 . Kinetic 343 | . 122 221 Thermal 52 | . 52 . Explosive 1898 | . 1119 779 Electromagnetic . | . . . Impact . | . . . Slashing . | . . . Piercing . | . . . Highest Corruption 6 | . . 6 Average Corruption 6 | . . 6 Corruption Purged . | . . . Corruption Blocked . | . . . Effects 9 | . . 9 Message Errors 2 | . . 2 Matter Fused 1 | . . 1 Energy Discharges 2 | . . 2 Parts Fused 1 | . . 1 Data Loss (minor) 1 | . . 1 Data Loss (major) 2 | . . 2 Overload Shots . | . . . Overflow Damage 125 | . 87 38 Projectiles . | . . . Explosions 125 | . 87 38 Melee . | . . . Knockbacks . | . . . Impact . | . . . Kinetic . | . . . Secondary . | . . . Self-Inflicted Damage 198 | . 65 133 Shots 9 | . 4 5 Rammed . | . . . Targets Rammed 2 | . 2 . Kicked 2 | . 2 . Crushed . | . . . Highest Temperature 47 | . 8 47 Average Temperature 18 | . 3 25 Received Heat Transfer 254 | . 54 200 Siege Activations . | . . . Martial Activations . | . . . Shielding Activations . | . . . Robots Disrupted . | . . . Combat Hostiles . | . . . Robots Corrupted . | . . . Combat Hostiles . | . . . Parts Fried . | . . . Impact Corruptions . | . . . Robots Melted . | . . . Combat Hostiles . | . . . Parts Melted . | . . . Heat Transferred 50 | . 50 . Parts Sabotaged . | . . . Parts Stolen . | . . . Parts Stripped . | . . . Power Chain Reactions . | . . . Alert | -11 -10 -10 ------- Run | Yrd Mat Min Maximum Alert Level 1 | . 1 . Low Security (%) 76 | 100 68 100 Level 1 23 | . 31 . Level 2 . | . . . Level 3 . | . . . Level 4 . | . . . Level 5 . | . . . High Security . | . . . Max Security . | . . . Peak Influence 274 | . 274 87 Initial 66 | . . 66 Average 95 | . 120 27 Influence Increases 553 | . 495 58 Destroy 0b10 Robot/C 160 | . 160 . Destroy 0b10 Robot/NC 60 | . 60 . Destroy Leader 34 | . 34 . Successful Hack 18 | . 18 . Disable Machine 105 | . 105 . Destroy Structure 176 | . 118 58 Influence Decreases 553 | . 323 230 Entered New Map 106 | . . 106 Time Decay 414 | . 323 91 Lost Part 33 | . . 33 Squads Dispatched . | . . . Investigation . | . . . Extermination . | . . . Reinforcement . | . . . Assault . | . . . Garrison . | . . . Intercept . | . . . Searches Triggered . | . . . Construction Impeded . | . . . Haulers Reinforced . | . . . Active Scanning Responses . | . . . Cargo Convoy Interrupts . | . . . Stealth | -11 -10 -10 --------- Run | Yrd Mat Min Distress Signals 1 | . 1 . Communications Jammed . | . . . Distress Signals . | . . . Times Spotted 38 | . 17 21 Peak Tracking Total 14 | . 6 14 Tactical Retreats 3 | . 1 2 Traps | -11 -10 -10 ------- Run | Yrd Mat Min Traps Triggered 2 | . 2 . Indirectly . | . . . Trap Hack Attempts . | . . . Triggered . | . . . Disarmed . | . . . Reprogrammed . | . . . Reused . | . . . Traps Extracted . | . . . Installed . | . . . Triggered . | . . . Machines | -11 -10 -10 ---------- Run | Yrd Mat Min Machines Disabled 7 | . 7 . Max in Single Turn 5 | . 5 . Machines Repaired . | . . . Machines Dismantled . | . . . Machines Sabotaged . | . . . Overloaded Fab Kills . | . . . Hacking | -11 -10 -10 --------- Run | Yrd Mat Min Machines Accessed 7 | . 7 . Terminals 5 | . 5 . Fabricators . | . . . Repair Stations 1 | . 1 . Recycling Units 1 | . 1 . Scanalyzers . | . . . Garrison Access . | . . . Total Hacks 18 | . 18 . Successful 13 | . 13 . Failed 5 | . 5 . Catastrophic . | . . . Database Lockouts . | . . . Manual 13 | . 13 . Terminals 12 | . 12 . Fabricators . | . . . Repair Stations 2 | . 2 . Recycling Units 4 | . 4 . Scanalyzers . | . . . Garrison Access . | . . . Terminal Hacks 2 | . 2 . Prototype ID Bank 1 | . 1 . Recycling Unit Index 1 | . 1 . Fabricator Hacks . | . . . Repair Station Hacks 2 | . 2 . Scan Component 1 | . 1 . Repair 1 | . 1 . Recycling Unit Hacks 1 | . 1 . Report Inventory 1 | . 1 . Scanalyzer . | . . . Garrison Access Hacks . | . . . Unauthorized Hacks 8 | . 8 . Terminals 6 | . 6 . Assimilate 2 | . 2 . Botnet 4 | . 4 . Fabricators . | . . . Repair Stations . | . . . Recycling Units 2 | . 2 . Monitor 1 | . 1 . Recyclers 1 | . 1 . Scanalyzers . | . . . Garrison Access . | . . . Data Cores Recovered . | . . . Used . | . . . Hacking Detections 6 | . 6 . Full Trace Events . | . . . Feedback Events . | . . . Feedback Blocked . | . . . Robot Schematics Acquired . | . . . Robots Built . | . . . Authchips . | . . . Time . | . . . Total Robot Build Rating . | . . . Part Schematics Acquired . | . . . Parts Built . | . . . Authchips . | . . . Time . | . . . Total Part Build Rating . | . . . Part Studies Acquired . | . . . Parts Repaired 1 | . 1 . Time 32 | . 32 . Parts Recycled . | . . . Recycled Matter . | . . . Retrieved Matter . | . . . Retrieved Components . | . . . Parts Scanalyzed . | . . . Part Schematics Acquired . | . . . Parts Damaged . | . . . Bothacking | -11 -10 -10 ------------ Run | Yrd Mat Min Used RIF Installer . | . . . Robots Hacked . | . . . Non-combat . | . . . Combat . | . . . Robot Hacks Applied . | . . . Relay Couplers Released . | . . . Fabnet Peak Effective % . | . . . Robots Rewired . | . . . Allies Hacked . | . . . Hacks Repelled . | . . . Allies | -11 -10 -10 -------- Run | Yrd Mat Min Total Allies . | . . . Largest Group . | . . . Highest-Rated Group . | . . . Highest-Rated Ally . | . . . Total Orders . | . . . Ally Attacks . | . . . Total Damage . | . . . Kills . | . . . Allies Corrupted . | . . . Allies Melted . | . . . Intel | -11 -10 -10 ------- Run | Yrd Mat Min Active Infowar (turns) 1155 | . 873 282 Optics 849 | . 798 51 Sensors 231 | . . 231 Seismic 75 | . 75 . Robot Analysis Total . | . . . Derelict Logs Recovered 1 | . . 1 Drone Launches . | . . . Drone Recoveries . | . . . Exploration | -11 -10 -10 ------------- Run | Yrd Mat Min Turns Passed 1410 | 74 1049 287 Spaces Moved 994 | 55 747 192 Core 8 | 8 . . Treads . | . . . Legs 986 | 47 747 192 Wheels . | . . . Hover . | . . . Flight . | . . . Fastest Speed 50 | 50 120 120 Average Speed 119 | 111 120 120 Slowest Speed 190 | 120 190 120 Overloaded Moves . | . . . Propulsion Burnouts . | . . . Robots Hopped . | . . . Potential Cave-ins . | . . . Cave-ins Triggered . | . . . Exploration Rate (%) 44 | 4 92 38 Regions Visited 2 Branch Regions 1 Pre-discovered Areas 1 | . . 1 Known Exits Taken . | . . . Unknown Exits Taken 2 | 1 1 . Scrap Searched 2 | . . 2 Spaces Dug . | . . . Terrain Destroyed 220 | . 120 100 Melee . | . . . Projectile . | . . . AOE 220 | . 120 100 Terrain Rammed . | . . . Walls Destroyed . | . . . Machines Disabled . | . . . Actions | -11 -10 -10 --------- Run | Yrd Mat Min Total 1144 | 65 860 219 Wait 41 | . 38 3 Move 992 | 54 746 192 Hop . | . . . Pick Up 13 | 5 8 . Fast Attach 13 | 5 8 . Attach 8 | 1 3 4 Detach 3 | . 3 . Swap 4 | . 4 . Drop 12 | . 12 . Fire 56 | . 36 20 Melee . | . . . Ram . | . . . Kick 2 | . 2 . Crush . | . . . Escape Stasis . | . . . Rewire . | . . . Trap . | . . . Miscellaneous . | . . . Route ------- -11/Scrapyard -10/Materials (discovered 4 exits: [*Mat x3] / [*Min]) -10/Mines (discovered 1 exit: [*Exi]) History --------- Turn | Location | Event 4 | -11/Scrapyard | Discovered new exit (range 15) 75 | -11/Scrapyard | Entered Materials 309 | -10/Materials | Build established: Mutant 349 | -10/Materials | Discovered new exit (range 17) 560 | -10/Materials | Discovered new exit (range 8) 575 | -10/Materials | Derelicts attacked the area 615 | -10/Materials | Repaired Rocket Launcher 689 | -10/Materials | Discovered new exit (range 8) 903 | -10/Materials | Discovered new exit (range 5) 1124 | -10/Materials | Entered Mines 1141 | -10/Mines | Assembled infested the area 1147 | -10/Mines | Learned 2 Materials zone layouts 1220 | -10/Mines | Destroyed 16 combat bots 1220 | -10/Mines | Found a hidden stash of uninstalled traps 1225 | -10/Mines | Lost 3 parts (2n1u) 1292 | -10/Mines | Deemed a non-threat by the Exiles lab entrance 1292 | -10/Mines | Discovered new exit (range 5) 1354 | -10/Mines | Learned location of Storage (-7) 1403 | -10/Mines | Core integrity fell below 50% 1408 | -10/Mines | Core integrity fell below 20% 1411 | -10/Mines | Destroyed by D-53 Grenadier with Mini Grenade Launcher Last Messages --------------- 01356_ LP-3T6(g): "We scattered so the Unaware couldn't effectively use their advantage in numbers, and I suggest you do the same." 01356_ LP-3T6(g) slips back into the shadows. 01358_ QMBNGUQB8J4VGNZZMWO<%LKSF5%RNF& 01381_ System corrupted: Matter fused (-10). 01382_ K-01 Serf collects debris. 01399_ T-07 Excavator is excavating. 01401_ System corrupted: Ion Engine fused. 01403_ Shotgun destroyed. 01403_ Destroyed Shotgun. 01403_ Rocket Launcher destroyed. 01403_ Destroyed Rocket Launcher. 01404_ T-07 Excavator is excavating. 01405_ The unstable cave ceiling collapses. 01406_ Sensor Array destroyed. 01407_ The unstable cave ceiling collapses. 01409_ T-07 Excavator is excavating. 01409_ Imp. Aluminum Leg destroyed. 01409_ T-07 Excavator destroyed. 01410_ The unstable cave ceiling collapses. Map ----- +----------------------------------------------------+ | ??????????????????????????????????????????? | | ??????????????????????????????????????????? | | ??????????????????????????????????????####? | | ??????????????????????????????????????# <#? | | ?????????????????????????????????????## #?? | | ?????????????????????????????????????# #?? | | ????????????????????????????????????## ##?? | | ????????????????????????????????????# ###? | | ????????????????????????????????????## ## | | ?????????????????????????????????????### # | | ????????????? ?????????????????????### | | ????????????? ????????????????????## | | ???????? ??? ????????????????????# | | ???????? ??? ##??????????????????# <% | | ????????? """ ##????????????????## #### | | ?????????# """ #????????????????# ##?## | | ?????????# """ #???????????###### ##??# | | ?????????# #??????????## # #???## | | ?????????# ??????????# # #????# | | ?????????# ?????????### # # ##????? | | ??????????# ####?????# #?????? | | ??????????## # # ####### ### # # #?????? | | ??????????# #d ## # # #?????? | | ??????????# d ## ###### # ## #?????? | | ???# ### # ## #????# # ?????? | | ???# @ #????#### ##?????? | | ???# t ####???????? #??????? | | ???# ## # #???????????###??????? | | ????##????# ##???????????????????? | | ??????????## ##??????????????????? | | ???????????#### ## #??????????????????? | | ?????######## ##?????????????????? | | ????## #?????????????????? | | ???## #?????????????????? | | ??## #????????????????? | | ??# ### #????????????????? | | ??# ### ##?## ##????????????????? | | ??# ##?####???#### ##?????????????????? | | ??# #?????????????###??????????????????? | | ??## #??????????????????????????????????? | | ???# #??????????????????????????????????? | | ???## #??????????????????????????????????? | | ????####??????????????????????????????????? | | ??????????????????????????????????????????? | | ??????????????????????????????????????????? | | ??????????????????????????????????????????? | | ??????????????????????????????????????????? | | ??????????????????????????????????????????? | | ??????????????????????????????????????????? | | ??????????????????????????????????????????? | +----------------------------------------------------+ Best States ------------- Heat Dissipation 25 Energy Generation 10 Energy Capacity 250 Matter Stores 280 Matter Capacity 300 Sight Range 18 Robot Scan Range 14 Terrain Scan Density 10 Evasion (%) 55 Item Schematics ----------------- None Robot Schematics ------------------ None Fabricated ------------ Nothing Repaired ---------- Rocket Launcher | 55% | -10/Materials Studied --------- None Alien Tech Used ----------------- None Achievements -------------- Exterminator Challenges ------------ None Game ------ Seed WeightTransportDrillbomb Manual? 0 Play Time 00:17:16 Cumulative 16.6 hours Start 2025.10.28 @ 03:53:16 End 2025.10.28 @ 04:07:24 Sessions 1 Manual Loads 0 Difficulty Rogue Special Mode None Game No. 40 Rogue 40 Adventurer 0 Explorer 0 Win Type - Total 0 Types 0/0/0/0/0/0/0/0/0/0 Lore% 6 Gallery% 18 Achievement% 17 Wizard Run 0 Options --------- Layout 0 ASCII 1 Keyboard 1 Movement Numpad Keybinds 0 Fullscreen 1 Font 18/VGA_Max Map View 76x50 Zoom Use 0% Tactical HUD 1 Map Filters NONE Filters NONE Steam 1 RUN: e9ff6023-432b-422c-84b8-b527402f930c